[Event "40th IND-chT Open 2020"]
[Site "Ahmedabad"]
[Date "2020.02.12"]
[Round "8.16"]
[White "Baivab Mishra"]
[Black "Adarsh Tripathi"]
[Result "1/2-1/2"]
[ECO "B38"]
[WhiteElo "2206"]
[BlackElo "2100"]
[Annotator "RC"]
[PlyCount "141"]
[EventDate "2020.02.05"]
[EventCountry "IND"]
[SourceTitle "playchess.com"]
[Source "ChessBase"]
[SourceQuality "1"]
[TimeControl "5400+30"]

1. d4 {[%emt 0:03:48]} Nf6 {[%emt 0:00:00]} 2. c4 {[%emt 0:00:02]} c5 {[%emt 0:00:00]} 3. Nf3 {[%emt 0:00:02]} g6 {[%emt 0:00:00]} 4. Nc3 {[%emt 0:00:05]} cxd4 {[%emt 0:00:00]} 5. Nxd4 {[%emt 0:00:03]} Bg7 {[%emt 0:00:03]} 6. e4 {[%emt 0:09:59]} d6 {[%emt 0:00:06]} 7. Be2 {[%emt 0:00:07]} Nc6 {[%emt 0:00:05]} 8. Be3 {[%emt 0:00:08]} O-O {[%emt 0:00:10]} 9. O-O {[%emt 0:00:04]} Nxd4 {[%emt 0:00:06]} 10. Bxd4 {[%emt 0:00:04]} Bd7 {[%emt 0:03:14]} 11. Qd3 {[%emt 0:00:25]} Bc6 {[%emt 0:01:14]} 12. b4 {[%emt 0:00:08]} b6 {[%emt 0:02:23]} 13. Rac1 {[%emt 0:03:07]} Rc8 {[%emt 0:00:42]} 14. Rfd1 {[%emt 0:02:01]} Bb7 {[%emt 0:01:20]} 15. Qb1 {[%emt 0:17:38]} Bh6 {[%emt 0:06:58]} 16. Rc2 {[%emt 0:06:14]} Nxe4 {[%emt 0:00:52]} 17. Bd3 {[%emt 0:04:18]} Nxc3 {[%emt 0:00:09]} 18. Bxc3 {[%emt 0:00:02]} Qd7 {[%emt 0:00:49]} 19. h3 {[%emt 0:02:31]} Bg7 {[%emt 0:00:35]} 20. Qc1 {[%emt 0:01:55]} Bxc3 {[%emt 0:00:52]} 21. Rxc3 {[%emt 0:00:01]} Qa4 {[%emt 0:00:37]} 22. a3 {[%emt 0:01:07]} Qc6 {[%emt 0:03:13]} 23. Bf1 {[%emt 0:00:13]} Rfd8 {[%emt 0:01:06]} 24. h4 {[%emt 0:06:56]} d5 {[%emt 0:01:52]} 25. h5 {[%emt 0:00:19]} dxc4 {[%emt 0:00:23]} 26. Re1 {[%emt 0:02:10]} Qf6 {[%emt 0:02:42]} 27. Qe3 {[%emt 0:10:22]} Rd3 {[%emt 0:06:53]} 28. Rxd3 {[%emt 0:02:13]} cxd3 {[%emt 0:00:29]} 29. Qxd3 {[%emt 0:00:33]} e6 {[%emt 0:05:36]} 30. Qd7 {[%emt 0:09:39]} Rb8 {[%emt 0:00:47]} 31. Rd1 {[%emt 0:04:25]} Bd5 {[%emt 0:01:31]} 32. Qxa7 {[%emt 0:01:40]} Qd8 {[%emt 0:00:04]} 33. Qa6 {[%emt 0:02:04]} Qg5 {[%emt 0:05:21]} 34. hxg6 {[%emt 0:02:52]} hxg6 {[%emt 0:00:05]} 35. Qd3 {[%emt 0:00:06]} Kg7 {[%emt 0:00:07]} 36. Qc3+ {[%emt 0:00:23]} Qf6 {[%emt 0:00:06]} 37. Rc1 {[%emt 0:01:05]} Qxc3 {[%emt 0:00:06]} 38. Rxc3 {[%emt 0:00:10]} Ra8 {[%emt 0:00:07]} 39. f3 {[%emt 0:00:07]} Kf6 {[%emt 0:00:05]} 40. Kf2 {[%emt 0:00:03]} Ke5 {[%emt 0:00:08]} 41. Ke3 {[%emt 0:00:09]} g5 {[%emt 0:00:13]} 42. g3 {[%emt 0:01:37]} f5 {[%emt 0:00:11]} 43. f4+ {[%emt 0:00:50]} gxf4+ {[%emt 0:00:05]} 44. gxf4+ {[%emt 0:00:02]} Kd6 {[%emt 0:00:06]} 45. Be2 {[%emt 0:00:57]} Rh8 {[%emt 0:00:22]} 46. a4 {[%emt 0:00:54]} Rh3+ {[%emt 0:00:23]} 47. Kd2 {[%emt 0:00:24]} Rh4 {[%emt 0:00:08]} 48. Ke3 {[%emt 0:00:07]} e5 {[%emt 0:03:25]} 49. fxe5+ {[%emt 0:00:07]} Kxe5 {[%emt 0:00:04]} 50. a5 {[%emt 0:01:05]} Rxb4 {[%emt 0:00:15]} 51. axb6 {[%emt 0:01:10]} Rxb6 {[%emt 0:00:05]} 52. Rc2 {[%emt 0:03:05]} Rb3+ {[%emt 0:00:07]} 53. Kf2 {[%emt 0:00:05]} Kf4 {[%emt 0:00:21]} 54. Rd2 {[%emt 0:01:43]} Be4 {[%emt 0:00:06]} 55. Ra2 {[%emt 0:00:18]} Rh3 {[%emt 0:00:33]} 56. Rb2 {[%emt 0:01:16]} Bd3 {[%emt 0:00:58]} 57. Rb4+ {[%emt 0:00:15]} Be4 {[%emt 0:00:05]} 58. Rb2 {[%emt 0:00:04]} Rh2+ {[%emt 0:00:06]} 59. Kg1 {[%emt 0:01:35]} Rg2+ {[%emt 0:01:07]} 60. Kf1 {[%emt 0:00:05]} Kg5 {[%emt 0:00:18]} 61. Rb3 {[%emt 0:01:16]} Rh2 {[%emt 0:00:24]} 62. Ra3 {[%emt 0:00:22]} Kh4 {[%emt 0:01:10]} 63. Rc3 {[%emt 0:00:30]} f4 {[%emt 0:00:13]} 64. Ra3 {[%emt 0:01:00]} Bf5 {[%emt 0:01:48]} 65. Rc3 {[%emt 0:01:10]} Bh3+ {[%emt 0:00:52]} 66. Ke1 {[%emt 0:00:06]} Rg2 {[%emt 0:00:04]} 67. Bf1 {[%emt 0:02:16]} Rg3 {[%emt 0:00:13]} 68. Rxg3 {[%emt 0:00:09]} fxg3 {[%emt 0:00:06]} 69. Bb5 {[%emt 0:00:15]} Bg2 {[%emt 0:00:05]} 70. Bd7 {[%emt 0:00:16]} Kg5 {[%emt 0:01:17]} 71. Ke2 {[%emt 0:00:11]} 1/2-1/2

[Event "40th IND-chT Open 2020"]
[Site "Ahmedabad"]
[Date "2020.02.12"]
[Round "8.21"]
[White "Anadkat Kartavya"]
[Black "Chauhan, Joy"]
[Result "1-0"]
[ECO "B07"]
[WhiteElo "2152"]
[BlackElo "1864"]
[Annotator "ChessBase"]
[PlyCount "155"]
[EventDate "2020.02.05"]
[EventCountry "IND"]
[SourceTitle "playchess.com"]
[Source "ChessBase"]
[SourceQuality "1"]
[TimeControl "5400+30"]

1. e4 {[%emt 1:30:30]} d6 {[%emt 1:30:30]} 2. d4 {[%emt 0:00:30]} g6 {[%emt 0:00:30]} 3. Nc3 {[%emt 0:00:30]} Bg7 {[%emt 0:00:30]} 4. h4 {[%emt 0:00:30]} Nf6 {[%emt 0:00:30]} 5. f3 {[%emt 0:00:30]} a6 {[%emt 0:00:30]} 6. Be3 {[%emt 0:00:30]} b5 {[%emt 0:00:30]} 7. Bd3 {[%emt 0:00:30]} Nbd7 {[%emt 0:00:30]} 8. g4 {[%emt 0:00:30]} h6 {[%emt 0:00:30]} 9. h5 {[%emt 0:00:30]} g5 {[%emt 0:00:30]} 10. Nge2 {[%emt 0:00:30]} c5 {[%emt 0:00:30]} 11. e5 {[%emt 0:00:30]} dxe5 {[%emt 0:00:30]} 12. dxc5 {[%emt 0:00:30]} Bb7 {[%emt 0:00:30]} 13. Ng3 {[%emt 0:00:30]} Qc7 {[%emt 0:00:30]} 14. Nce4 {[%emt 0:00:30]} Rd8 {[%emt 0:00:30]} 15. Qe2 {[%emt 0:00:30]} Bxe4 {[%emt 0:00:30]} 16. Nxe4 {[%emt 0:00:30]} Nxe4 {[%emt 0:00:30]} 17. Bxe4 {[%emt 0:00:30]} Nxc5 {[%emt 0:00:30]} 18. Bxc5 {[%emt 0:00:30]} Qxc5 {[%emt 0:00:30]} 19. Qf2 {[%emt 0:00:30]} Qxf2+ {[%emt 0:00:30]} 20. Kxf2 {[%emt 0:00:30]} e6 {[%emt 0:00:30]} 21. Rhd1 {[%emt 0:00:30]} Ke7 {[%emt 0:00:30]} 22. Ke2 {[%emt 0:00:30]} Rxd1 {[%emt 0:00:30]} 23. Rxd1 Rc8 {[%emt 0:00:30]} 24. c3 {[%emt 0:01:00]} Rc7 {[%emt 0:00:30]} 25. Ra1 {[%emt 0:00:30]} Rc4 {[%emt 0:00:30]} 26. Kd3 {[%emt 0:00:30]} f5 {[%emt 0:00:30]} 27. gxf5 {[%emt 0:00:30]} exf5 {[%emt 0:00:30]} 28. Bxf5 {[%emt 0:00:30]} Rf4 {[%emt 0:00:30]} 29. Be4 {[%emt 0:00:30]} Rh4 {[%emt 0:00:30]} 30. a4 {[%emt 0:00:30]} bxa4 {[%emt 0:00:30]} 31. Rxa4 {[%emt 0:00:30]} Rxh5 {[%emt 0:00:30]} 32. Rxa6 {[%emt 0:00:30]} Rh3 {[%emt 0:00:30]} 33. Rg6 {[%emt 0:00:30]} Kf7 {[%emt 0:00:30]} 34. Ke3 {[%emt 0:00:30]} h5 {[%emt 0:00:30]} 35. b4 {[%emt 0:00:30]} g4 {[%emt 0:00:30]} 36. Ra6 {[%emt 0:00:30]} gxf3 {[%emt 0:00:30]} 37. Ra7+ {[%emt 0:00:30]} Kf8 {[%emt 0:00:30]} 38. Bxf3 {[%emt 0:00:30]} e4 {[%emt 0:00:30]} 39. Kxe4 {[%emt 0:00:30]} Bxc3 {[%emt 0:00:30]} 40. b5 {[%emt 0:00:30]} Rh4+ {[%emt 0:00:30]} 41. Kd3 Be5 {[%emt 0:00:30]} 42. Be4 {[%emt 0:01:00]} Rh2 {[%emt 0:00:30]} 43. Kc4 {[%emt 0:00:30]} Rd2 {[%emt 0:00:30]} 44. Bd3 {[%emt 0:00:30]} h4 {[%emt 0:00:30]} 45. Rh7 {[%emt 0:00:30]} Bg3 {[%emt 0:00:30]} 46. b6 {[%emt 0:00:30]} Rb2 {[%emt 0:00:30]} 47. b7 {[%emt 0:00:30]} Kg8 {[%emt 0:00:30]} 48. Be4 {[%emt 0:00:30]} Re2 {[%emt 0:00:30]} 49. Rxh4 {[%emt 0:00:30]} Kf7 {[%emt 0:00:30]} 50. Rh7+ {[%emt 0:00:30]} Kf6 {[%emt 0:00:30]} 51. Bd3 {[%emt 0:00:30]} Rh2 {[%emt 0:00:30]} 52. Rd7 {[%emt 0:00:30]} Rh8 {[%emt 0:00:30]} 53. Kb5 {[%emt 0:00:30]} Ke6 {[%emt 0:00:30]} 54. Rg7 {[%emt 0:00:30]} Be5 {[%emt 0:00:30]} 55. Bc4+ {[%emt 0:00:30]} Kf6 {[%emt 0:00:30]} 56. Rf7+ {[%emt 0:00:30]} Kg6 {[%emt 0:00:30]} 57. Rf3 {[%emt 0:00:30]} Rh2 {[%emt 0:00:30]} 58. Ra3 {[%emt 0:00:30]} Rb2+ {[%emt 0:00:30]} 59. Kc6 {[%emt 0:00:30]} Kf6 {[%emt 0:00:30]} 60. Ra8 {[%emt 0:00:30]} Rb1 {[%emt 0:00:30]} 61. Re8 {[%emt 0:00:30]} Bh2 {[%emt 0:00:30]} 62. Rh8 {[%emt 0:00:30]} Bg3 {[%emt 0:00:30]} 63. Bb5 {[%emt 0:00:30]} Rc1+ {[%emt 0:00:30]} 64. Kd5 {[%emt 0:00:30]} Rd1+ {[%emt 0:00:30]} 65. Kc4 {[%emt 0:00:30]} Rc1+ {[%emt 0:00:30]} 66. Kd3 {[%emt 0:00:30]} Rb1 {[%emt 0:00:30]} 67. b8=Q {[%emt 0:00:30]} Bxb8 {[%emt 0:00:30]} 68. Rxb8 {[%emt 0:00:30]} Kg7 {[%emt 0:00:30]} 69. Kd4 {[%emt 0:00:30]} Kf6 {[%emt 0:00:30]} 70. Rb6+ {[%emt 0:00:30]} Kg7 {[%emt 0:00:30]} 71. Kc5 {[%emt 0:00:30]} Rd1 {[%emt 0:00:30]} 72. Bc4 {[%emt 0:00:30]} Rd2 {[%emt 0:00:30]} 73. Bd5 {[%emt 0:00:30]} Rh2 {[%emt 0:00:30]} 74. Kd6 {[%emt 0:00:30]} Rh6+ {[%emt 0:00:30]} 75. Be6 {[%emt 0:00:30]} Rh2 {[%emt 0:00:30]} 76. Rb8 {[%emt 0:00:30]} Re2 {[%emt 0:00:30]} 77. Ke7 {[%emt 0:00:30]} Kh7 {[%emt 0:00:30]} 78. Kf6 {[%emt 0:00:30]} 1-0

[Event "40th IND-chT Open 2020"]
[Site "Ahmedabad"]
[Date "2020.02.12"]
[Round "8.22"]
[White "Jay Kundaliya"]
[Black "Bhatt, Jalpan"]
[Result "0-1"]
[ECO "B34"]
[WhiteElo "2071"]
[BlackElo "1983"]
[Annotator "NA"]
[PlyCount "94"]
[EventDate "2020.02.05"]
[EventCountry "IND"]
[SourceTitle "playchess.com"]
[Source "ChessBase"]
[SourceQuality "1"]
[TimeControl "5400+30"]

{[%evp 8,94,37,15,6,0,4,4,-14,-5,10,0,10,0,5,7,0,-26,-22,-8,-9,-40,-29,-41,37,23,25,30,22,35,40,22,8,24,51,0,0,-266,-260,-600,-426,-407,-384,-828,-869,-6420,-771,-29987,0,-29964,-535,-470,-528,-517,32767,32767,32767,32767,-656,-589,-600,-805,-879,-802,-872,-871,-879,-918,-994,32767,-955,32767,-1140,-1073,-1339,-1318,-1186,-1235,-1879,-1566,-1939,-1721,-2295,-1936,-2787,-3347,-3216,-3814,-29986]} 1. e4 {[%emt 0:00:36]} c5 {[%emt 0:00:00]} 2. Nf3 {[%emt 0:00:18]} Nc6 {[%emt 0:00:00]} 3. d4 {[%emt 0:00:08]} cxd4 {[%emt 0:00:00]} 4. Nxd4 {[%emt 0:00:06]} g6 {[%emt 0:00:00]} 5. Nc3 {[%emt 0:00:24]} Bg7 {[%emt 0:00:00]} 6. Be3 {[%emt 0:00:10]} Nf6 {[%emt 0:00:00]} 7. Nxc6 {[%emt 0:03:20]} bxc6 {[%emt 0:00:00]} 8. e5 {[%emt 0:00:11]} Ng8 {[%emt 0:00:00]} 9. f4 {[%emt 0:00:23]} Nh6 {[%emt 0:00:14]} 10. Qd2 {[%emt 0:00:41]} O-O {[%emt 0:01:27] B34: Sicilian: Accelerated Dragon with 5 Nc3: sidelines.} 11. O-O-O {[%emt 0:01:19]} d6 {[%emt 0:08:54]} 12. h3 {[%emt 0:03:27]} Nf5 {[%emt 0:01:47]} 13. Bf2 {[%emt 0:00:06]} c5 {[%emt 0:00:53]} 14. Bc4 {[%emt 0:10:19]} Bb7 {[%emt 0:07:16]} 15. Bd5 {[%emt 0:00:35] [#]} Qc7 $146 {[%emt 0:15:52]} (15... Rb8 $15) ({Predecessor:} 15... Qb6 16. g4 Nd4 17. Bxd4 cxd4 18. Qxd4 Qa6 19. Qa4 Qb6 20. Qb3 Qe3+ 21. Kb1 Rab8 22. Bxb7 dxe5 {1-0 (41) Carnicelli,V (2307)-Debray,C (2368) Cutro 2018}) 16. g4 {[%emt 0:25:58]} Nd4 $1 {[%emt 0:00:34]} 17. Bxb7 $1 {[%emt 0:20:27]} Qxb7 {[%emt 0:00:15]} 18. Bxd4 {[%emt 0:00:16]} cxd4 {[%emt 0:00:02]} 19. Qxd4 {[%emt 0:00:02]} dxe5 {[%emt 0:00:12]} 20. fxe5 {[%emt 0:00:12]} Rab8 {[%emt 0:00:57]} 21. Na4 {[%emt 0:02:57]} (21. b3 $14) 21... Rfc8 {[%emt 0:04:55]} 22. Rh2 $2 {[%emt 0:07:15]} (22. Rhe1 $1 $11) 22... Qb5 {[%emt 0:01:07]} 23. Qd7 $2 {[%emt 0:18:24]} (23. b3 Bxe5 {[%mdl 64] Double Attack} 24. Qd2) 23... Qxe5 {[%emt 0:06:32]} 24. Rf2 {[%emt 0:01:29]} Qe3+ {[%emt 0:08:38]} 25. Rfd2 $2 {[%emt 0:00:02]} (25. Qd2 Bh6 26. Qxe3 Bxe3+ 27. Rdd2) 25... Rd8 {[%emt 0:03:56]} 26. Qc7 {[%emt 0:00:01]} Rbc8 {[%emt 0:00:29]} 27. Qb7 {[%emt 0:00:15]} Rb8 $2 {[%emt 0:01:26]} (27... Rxd2 {mates} 28. Qxc8+ Rd8+ {[%mdl 64] Discovered Attack} 29. Kb1 Rxc8 30. a3 Qe4 31. Rd3 Qxa4 32. Rb3 Qc4 33. Ka1 Qxc2 34. Ka2 {[#]} Qc4 $1 {[%mdl 512]} 35. g5 Rb8 36. Kb1 Qxb3 37. Kc1 Rd8 38. h4 Qxb2#) 28. Qc7 $1 {[%emt 0:00:01]} Be5 {[%emt 0:01:20]} (28... Rxd2 $142 29. Qxb8+ Rd8+ {[%mdl 64] Discovered Attack} 30. Kb1 Rxb8 31. h4 {[#]} Qe4 $1 {[%mdl 512]} 32. Kc1 Qf4+ 33. Kb1 Qxa4 34. b3 Qa3 35. c3 Rxb3+ $1 {[%mdl 512]} 36. Kc2 Rxc3+ 37. Kd2 Rc2+ $1 {[%mdl 576] Decoy, Clearance} 38. Kxc2 Qc3+ 39. Kb1 Qb2#) 29. Qxe5 {[%emt 0:00:45]} Qxe5 {[%emt 0:01:08]} 30. Rxd8+ {[%emt 0:00:02]} Rxd8 {[%emt 0:00:09]} 31. Rxd8+ {[%emt 0:00:03]} Kg7 {[%emt 0:00:03]} 32. b3 {[%emt 0:00:06]} Qe3+ {[%emt 0:01:30]} 33. Kb2 {[%emt 0:00:52]} Qxh3 {[%emt 0:00:02]} 34. c4 {[%emt 0:00:13]} Qxg4 {[%emt 0:00:31]} 35. c5 {[%emt 0:00:05]} h5 {[%emt 0:00:19]} 36. Rd2 {[%emt 0:03:04]} Qc8 {[%emt 0:00:48]} 37. b4 {[%emt 0:00:30]} Qb7 {[%emt 0:01:26]} 38. Kb3 {[%emt 0:00:56]} h4 {[%emt 0:00:47]} 39. Nc3 {[%emt 0:01:51]} h3 {[%emt 0:04:51]} 40. b5 {[%emt 0:00:09]} Qc7 {[%emt 0:01:04]} 41. c6 {[%emt 0:01:36]} h2 {[%emt 0:00:01]} 42. Rd1 {[%emt 0:00:50]} e6 {[%emt 0:03:36]} 43. a4 {[%emt 0:00:23]} g5 {[%emt 0:01:09]} 44. Ne4 {[%emt 0:00:42]} g4 {[%emt 0:04:20]} 45. Nd6 {[%emt 0:00:25]} Kf8 {[%emt 0:06:21]} 46. Kb4 {[%emt 0:00:33]} Ke7 $19 {[%emt 0:01:17]} 47. Nc4 {[%emt 0:00:25]} g3 {[%emt 0:00:24]} 0-1

[Event "40th IND-chT Open 2020"]
[Site "Ahmedabad"]
[Date "2020.02.12"]
[Round "8.23"]
[White "Trivedi Karan R"]
[Black "Patel, Palak"]
[Result "1-0"]
[ECO "D02"]
[WhiteElo "1956"]
[BlackElo "1830"]
[Annotator "NA"]
[PlyCount "145"]
[EventDate "2020.02.05"]
[EventCountry "IND"]
[SourceTitle "playchess.com"]
[Source "ChessBase"]
[SourceQuality "1"]
[TimeControl "5400+30"]

1. d4 {[%emt 0:00:08]} Nf6 {[%emt 0:00:40]} 2. Nf3 {[%emt 0:00:17]} d5 {[%emt 0:00:33]} 3. c3 {[%emt 0:00:16]} e6 {[%emt 0:00:18]} 4. Bf4 {[%emt 0:00:18]} c5 {[%emt 0:01:44]} 5. e3 {[%emt 0:00:08]} Nc6 {[%emt 0:00:09]} 6. Nbd2 {[%emt 0:00:43]} cxd4 {[%emt 0:00:07]} 7. exd4 {[%emt 0:00:08]} Bd6 {[%emt 0:00:20]} 8. Bg3 {[%emt 0:00:21]} a6 {[%emt 0:00:31]} 9. Bd3 {[%emt 0:00:20]} b5 {[%emt 0:00:58]} 10. b4 {[%emt 0:02:05]} Bb7 {[%emt 0:00:55]} 11. a4 {[%emt 0:00:34]} bxa4 {[%emt 0:02:15]} 12. Qxa4 {[%emt 0:01:17]} O-O {[%emt 0:00:05]} 13. O-O {[%emt 0:00:45]} Bxg3 {[%emt 0:00:11]} 14. hxg3 {[%emt 0:00:09]} Qd6 {[%emt 0:00:28]} 15. Rfe1 {[%emt 0:02:27]} Nd7 {[%emt 0:00:13]} 16. Qc2 {[%emt 0:01:56]} h6 {[%emt 0:00:37]} 17. Nb3 {[%emt 0:00:40]} e5 {[%emt 0:00:20]} 18. dxe5 {[%emt 0:01:16]} Ncxe5 {[%emt 0:00:53]} 19. Nxe5 {[%emt 0:00:12]} Nxe5 {[%emt 0:00:05]} 20. Nc5 {[%emt 0:00:18]} Bc8 {[%emt 0:01:08]} 21. Qe2 {[%emt 0:01:19]} Nxd3 {[%emt 0:00:29]} 22. Qxd3 {[%emt 0:01:03]} a5 {[%emt 0:00:48]} 23. Qd4 {[%emt 0:01:12]} Be6 {[%emt 0:01:18]} 24. Rxa5 {[%emt 0:04:04]} Rxa5 {[%emt 0:00:44]} 25. Nb7 {[%emt 0:00:26]} Qa6 {[%emt 0:04:09]} 26. Nxa5 {[%emt 0:00:29]} Rc8 {[%emt 0:00:23]} 27. Re3 {[%emt 0:04:43]} Qb5 {[%emt 0:00:50]} 28. Nb3 {[%emt 0:02:28]} Ra8 {[%emt 0:07:30]} 29. Re1 {[%emt 0:00:39]} Ra3 {[%emt 0:03:08]} 30. Nc5 {[%emt 0:01:16]} Qc6 {[%emt 0:01:12]} 31. Qe5 {[%emt 0:03:49]} Kh8 {[%emt 0:03:48]} 32. Rd1 {[%emt 0:04:48]} Kg8 {[%emt 0:05:05]} 33. Qd4 {[%emt 0:05:32]} Qb5 {[%emt 0:03:26]} 34. Re1 {[%emt 0:02:18]} Qc6 {[%emt 0:00:15]} 35. Rc1 {[%emt 0:00:50]} Qb5 {[%emt 0:00:17]} 36. Qe3 {[%emt 0:01:31]} Qc6 {[%emt 0:01:32]} 37. Qe5 {[%emt 0:00:53]} Kh8 {[%emt 0:01:39]} 38. Nd3 {[%emt 0:03:44]} Rb3 {[%emt 0:07:19]} 39. Qd4 {[%emt 0:00:33]} Kg8 {[%emt 0:03:15]} 40. Ne5 {[%emt 0:11:07]} Qa6 {[%emt 0:00:24]} 41. Qe3 {[%emt 0:07:16]} Qa3 {[%emt 0:00:48]} 42. Nf3 {[%emt 0:00:42]} Qa6 {[%emt 0:03:28]} 43. Nd4 {[%emt 0:00:17]} Ra3 {[%emt 0:00:18]} 44. g4 {[%emt 0:05:48]} Qc8 {[%emt 0:07:10]} 45. b5 {[%emt 0:15:41]} Qc5 {[%emt 0:00:34]} 46. Qd2 {[%emt 0:06:59]} Bd7 {[%emt 0:03:48]} 47. Qb2 {[%emt 0:00:22]} Ra7 {[%emt 0:00:40]} 48. b6 {[%emt 0:03:07]} Rb7 {[%emt 0:00:23]} 49. Rb1 {[%emt 0:00:01]} Kf8 {[%emt 0:03:37]} 50. Qb4 {[%emt 0:01:03]} Qxb4 {[%emt 0:00:09]} 51. Rxb4 {[%emt 0:00:02]} Ke7 {[%emt 0:00:08]} 52. Nb3 {[%emt 0:00:31]} Kd6 {[%emt 0:00:31]} 53. f3 {[%emt 0:00:34]} Rb8 {[%emt 0:01:23]} 54. Kf2 {[%emt 0:00:29]} Bc8 {[%emt 0:00:20]} 55. Ke3 {[%emt 0:00:21]} Kc6 {[%emt 0:00:47]} 56. Na5+ {[%emt 0:00:38]} Kc5 {[%emt 0:00:36]} 57. Kf4 {[%emt 0:00:48]} f6 {[%emt 0:00:30]} 58. Kg3 {[%emt 0:02:30]} g5 {[%emt 0:01:18]} 59. b7 {[%emt 0:01:00]} Bd7 {[%emt 0:00:11]} 60. Kf2 {[%emt 0:01:42]} f5 {[%emt 0:02:09]} 61. gxf5 {[%emt 0:00:24]} Bxf5 {[%emt 0:00:31]} 62. Nb3+ {[%emt 0:00:12]} Kd6 {[%emt 0:00:43]} 63. Rb6+ {[%emt 0:00:17]} Kc7 {[%emt 0:00:10]} 64. Rxh6 {[%emt 0:00:16]} Rxb7 {[%emt 0:00:08]} 65. Nd4 {[%emt 0:00:11]} Rb2+ {[%emt 0:00:49]} 66. Ke3 {[%emt 0:00:54]} Bd7 {[%emt 0:01:52]} 67. g4 {[%emt 0:00:05]} Rg2 {[%emt 0:00:47]} 68. Rg6 {[%emt 0:00:08]} Bxg4 {[%emt 0:01:12]} 69. fxg4 {[%emt 0:01:22]} Rxg4 {[%emt 0:00:22]} 70. Rxg5 {[%emt 0:00:09]} Re4+ {[%emt 0:00:07]} 71. Kd3 {[%emt 0:00:04]} Kd6 {[%emt 0:00:22]} 72. c4 {[%emt 0:00:45]} Re5 {[%emt 0:03:12]} 73. c5+ {[%emt 0:00:14]} 1-0

[Event "40th IND-chT Open 2020"]
[Site "Ahmedabad"]
[Date "2020.02.12"]
[Round "8.24"]
[White "Chudasama Ankit"]
[Black "Sinha, Santosh Kumar"]
[Result "0-1"]
[ECO "D17"]
[WhiteElo "1824"]
[BlackElo "1942"]
[Annotator "NA RC"]
[PlyCount "42"]
[EventDate "2020.02.05"]
[EventCountry "IND"]
[SourceTitle "playchess.com"]
[Source "ChessBase"]
[SourceQuality "1"]
[TimeControl "5400+30"]

{[%evp 8,42,3,18,23,5,1,-30,-15,-135,-119,-129,-123,-126,32767,32767,32767,32767,32767,32767,-142,-139,-147,-153,-141,-266,-241,-498,32767,-584,-479,-807,-787,-1010,-1118,-1683,-1700]} 1. d4 {[%emt 1:30:30]} d5 {[%emt 1:30:30]} 2. c4 {[%emt 0:00:30]} c6 {[%emt 0:00:30]} 3. Nf3 {[%emt 0:00:30]} Nf6 {[%emt 0:00:30]} 4. Nc3 {[%emt 0:00:30]} dxc4 {[%emt 0:00:30]} 5. a4 {[%emt 0:00:30]} Bf5 {[%emt 0:00:30]} 6. Ne5 {[%emt 0:00:30]} e6 {[%emt 0:00:30]} 7. Nxc4 {[%emt 0:00:30]} Bb4 {[%emt 0:00:30] [#]} 8. Ne3 $146 {[%emt 0:00:30] D17: Slav Defence: 5 a4 Bf5: Lines with 6 Nh4 and 6 Ne5.} (8. f3 $11) ({Predecessor:} 8. e3 O-O 9. Be2 c5 10. O-O cxd4 11. exd4 Nc6 12. Be3 Nd5 13. Qb3 a5 14. Rad1 Rc8 15. Bf3 Nce7 16. Nb5 {0-1 (31) Konopka,M (2421)-Spalir,J (2361) Zillertal 2015}) 8... Bg6 {[%emt 0:00:30]} 9. Nc2 {[%emt 0:00:30]} Bxc2 {[%emt 0:00:30]} 10. Qxc2 {[%emt 0:00:30]} Qxd4 {[%emt 0:00:30]} 11. e3 {[%emt 0:00:30]} Qe4 {[%emt 0:00:30]} 12. Qb3 {[%emt 0:00:30]} a5 {[%emt 0:00:30]} 13. Bd2 {[%emt 0:00:30]} Qf5 {[%emt 0:00:30]} 14. f3 {[%emt 0:00:30]} Nbd7 {[%emt 0:00:30]} 15. e4 {[%emt 0:00:30]} Qc5 {[%emt 0:00:30]} 16. Ke2 {[%emt 0:00:30]} (16. O-O-O $17 {was necessary.}) 16... Qh5 {[%emt 0:00:30]} 17. g4 $2 {[%emt 0:00:30] [#]} (17. Qc2) 17... Nxg4 $1 {[%emt 0:00:30]} 18. Na2 {[%emt 0:00:30]} Nc5 {[%emt 0:00:30]} 19. Qc2 {[%emt 0:00:30]} (19. fxg4 $142 Qxg4+ 20. Qf3 Qxf3+ {[%mdl 64] Overworked Piece} 21. Kxf3 Bxd2 22. Rg1) 19... Ne5 {[%emt 0:00:30]} 20. Nxb4 {[%emt 0:00:30]} Nxf3 {[%emt 0:00:30]} 21. Qc3 {[%emt 0:00:30]} Nxd2+ {[%emt 0:00:30]} 0-1